bitfinex/quotes_SOLUSD_20240703
["timestamp","ask_amount","ask_price","bid_price","bid_amount"]
[1720008900436,20.0,143.29,143.22,17.4552]
[1720008901132,20.0,143.29,143.22,24.4374]
[1720008901844,15.1331,143.3,143.26,6.9801]
[1720008902338,15.1331,143.3,143.21,34.1296]
[1720008902638,15.1331,143.3,143.2,6.2138]
[1720008902831,15.1331,143.3,143.2,6.9829]
[1720008903034,15.1331,143.3,143.21,6.9826]
[1720008903341,20.17,143.29,143.22,17.4554]
[1720008903532,20.0,143.29,143.22,24.4373]
[1720008903752,20.0,143.29,143.22,17.4554]
[1720008903956,20.0,143.29,143.22,38.4954]
[1720008904437,15.1331,143.3,143.24,17.453]
[1720008904744,0.8123711,143.32,143.26,17.4499]
[1720008904920,0.8123711,143.32,143.27,6.9796]
[1720008905128,0.8123711,143.32,143.26,45.47]
[1720008905446,0.8123711,143.32,143.26,17.4499]
[1720008906434,0.8123711,143.32,143.27,6.9794]
[1720008906736,0.8123711,143.32,143.31,6.9778]
[1720008907332,16.6186,143.39,143.35,6.9755]
[1720008907528,16.6186,143.39,143.31,41.04]
[1720008907529,16.6186,143.39,143.34,24.4164]
[1720008907735,16.6186,143.39,143.32,6.9771]
[1720008907938,16.6186,143.39,143.31,17.444]
[1720008908250,16.6186,143.39,143.31,6.9778]
[1720008908548,16.6186,143.39,143.31,6.9774]
[1720008908741,16.6186,143.39,143.34,6.9762]
[1720008909049,6.6374,143.41,143.34,17.4405]
[1720008909514,6.6374,143.41,143.31,17.444]
[1720008909920,6.6374,143.41,143.28,6.5068]
[1720008909921,15.4659,143.4,143.28,17.4474]
[1720008910327,0.34,143.39,143.28,17.4474]
[1720008910526,6.0659,143.38,143.25,17.4516]
[1720008910749,37.11,143.36,143.23,6.9816]
[1720008910941,37.11,143.36,143.22,24.4369]
[1720008911140,20.34,143.35,143.22,24.4369]
[1720008911336,19.84,143.35,143.23,6.9814]
[1720008911535,6.6969,143.34,143.23,6.9816]
[1720008911925,6.6969,143.34,143.24,17.4526]
[1720008912240,6.6969,143.34,143.25,6.9804]
[1720008912624,6.6969,143.34,143.24,17.4526]
[1720008912937,6.6969,143.34,143.21,17.4561]
[1720008913264,6.6969,143.34,143.21,24.4385]
[1720008913454,45.0,143.33,143.19,17.6132]
[1720008913625,15.4702,143.31,143.19,1.0168]
[1720008913831,6.234,143.29,143.19,1.0168]
[1720008914027,20.34,143.28,143.19,1.0168]
[1720008914830,20.0,143.28,143.23,6.9813]
[1720008915032,15.4702,143.31,143.25,17.4511]
[1720008915333,15.4702,143.31,143.25,24.4317]
[1720008916032,15.4702,143.31,143.26,6.9802]
[1720008916226,6.4389,143.32,143.25,21.04]
[1720008916431,15.6087,143.35,143.28,6.9791]
[1720008917033,15.6087,143.35,143.27,24.4286]
[1720008917235,15.6087,143.35,143.27,17.449]
[1720008917756,20.0,143.34,143.27,17.449]
[1720008917930,20.0,143.34,143.29,6.9787]
[1720008918332,15.6087,143.35,143.3,6.9783]
[1720008918842,6.6612,143.4,143.31,17.4441]
[1720008919238,6.6612,143.4,143.31,38.4841]
[1720008919431,6.6612,143.4,143.32,6.9772]
[1720008919758,6.6612,143.4,143.35,6.9754]
[1720008920063,15.2386,143.41,143.34,24.4169]
[1720008920434,15.2386,143.41,143.34,38.4807]
[1720008920854,6.6329,143.44,143.36,6.4751]
[1720008921161,6.6329,143.44,143.37,6.9748]
[1720008921368,15.1085,143.45,143.36,17.4382]
[1720008921369,15.1085,143.45,143.38,6.9743]
[1720008921530,15.1085,143.45,143.36,45.4532]
[1720008921737,15.1085,143.45,143.36,38.4782]
[1720008921931,15.1085,143.45,143.36,24.4135]
[1720008922535,15.1085,143.45,143.36,17.4382]
[1720008922843,0.17,143.44,143.36,24.4136]
[1720008923768,15.1085,143.45,143.36,38.4782]
[1720008923936,15.1085,143.45,143.37,6.9748]
[1720008924257,15.1085,143.45,143.33,17.6117]
[1720008924458,20.0,143.44,143.35,6.9758]
[1720008924836,20.0,143.44,143.33,17.4417]
[1720008924837,6.3378,143.43,143.3,17.4453]
[1720008925034,20.0,143.42,143.3,24.4233]
[1720008925253,0.17,143.41,143.31,6.9778]
[1720008926238,0.17,143.41,143.32,6.9773]
[1720008926537,0.17,143.41,143.32,24.4199]
[1720008927168,0.17,143.41,143.32,38.4827]
[1720008927342,20.0,143.42,143.34,6.976]
[1720008927653,20.0,143.42,143.32,17.4427]
[1720008927845,0.17,143.41,143.33,6.9767]
[1720008928039,0.17,143.41,143.34,6.9763]
[1720008928441,6.3378,143.43,143.35,6.9756]
[1720008928775,6.3378,143.43,143.37,6.9748]
[1720008928942,6.3378,143.43,143.38,17.4358]
[1720008929146,15.1085,143.45,143.38,24.4099]
[1720008929339,15.1085,143.45,143.39,6.9739]
[1720008929532,15.1085,143.45,143.4,6.9734]
[1720008929739,15.1085,143.45,143.4,17.4332]
[1720008930059,6.28736471,143.47,143.4,17.4332]
[1720008930252,6.28736471,143.47,143.4,24.4063]
[1720008930559,0.04146471,143.47,143.43,6.9719]
[1720008930960,0.04146471,143.47,143.42,17.4309]
[1720008930961,0.04146471,143.47,143.42,24.4032]
[1720008931565,0.04146471,143.47,143.42,17.4309]
[1720008932357,0.04146471,143.47,143.42,24.403]
[1720008933038,0.04146471,143.47,143.43,8.36365664]
[1720008933281,0.04146471,143.47,143.44,18.81986693]
[1720008933448,0.04146471,143.47,143.45,6.971]
[1720008933852,0.04146471,143.47,143.45,28.011]
[1720008934038,0.7523711,143.46,143.45,28.011]
[1720008934448,0.7523711,143.46,143.45,48.181]
[1720008934837,0.7523711,143.46,143.45,48.011]
[1720008935546,0.7523711,143.46,143.45,48.351]
[1720008937149,0.8123711,143.6,143.51,21.04]
[1720008937354,0.8123711,143.6,143.54,6.9665]
[1720008937556,0.8123711,143.6,143.53,24.3844]
[1720008937745,0.8123711,143.6,143.54,6.9666]
[1720008937944,0.8123711,143.6,143.53,17.4173]
[1720008938449,0.8123711,143.6,143.54,6.9665]
[1720008938772,0.8123711,143.6,143.53,17.4173]
[1720008938972,0.8123711,143.6,143.56,6.9655]
[1720008939143,0.8123711,143.6,143.51,21.04]
[1720008939345,0.8123711,143.6,143.53,6.9671]
[1720008939566,0.8123711,143.6,143.54,17.4162]
[1720008939770,0.8123711,143.6,143.54,21.04]
[1720008939976,0.8123711,143.6,143.56,17.4131]
[1720008940367,0.8123711,143.6,143.59,6.9642]
[1720008941456,21.6797,143.73,143.65,6.9611]
[1720008941660,21.6797,143.73,143.64,17.4041]
[1720008941661,21.6797,143.73,143.66,6.9605]
[1720008941858,21.6797,143.73,143.65,6.9612]
[1720008942287,21.6797,143.73,143.64,17.4041]
[1720008942797,21.6797,143.73,143.58,6.2477]
[1720008942958,21.6797,143.73,143.62,24.3692]
[1720008943665,21.6797,143.73,143.63,6.9622]
[1720008943893,20.0,143.72,143.62,24.3693]
[1720008944060,20.0,143.72,143.59,17.41]
[1720008944264,0.17,143.71,143.56,17.414]
[1720008944480,0.17,143.71,143.57,20.0]
[1720008944688,0.17,143.71,143.58,17.4113]
[1720008945062,0.34,143.71,143.62,6.9624]
[1720008945286,0.34,143.71,143.6,17.4083]
[1720008945492,45.34,143.71,143.57,17.4125]
[1720008945687,45.34,143.71,143.54,6.1792]
[1720008945688,20.0,143.7,143.59,17.4102]
[1720008945873,0.34,143.69,143.62,6.9623]
[1720008946072,20.0,143.7,143.58,34.8215]
[1720008946262,20.0,143.72,143.65,24.364]
[1720008946475,20.0,143.72,143.65,17.4028]
[1720008946784,21.6797,143.73,143.65,24.3641]
[1720008946963,21.6797,143.73,143.65,17.4028]
[1720008947179,21.6797,143.73,143.64,6.9617]
[1720008947380,21.6797,143.73,143.65,6.9613]
[1720008947669,21.6797,143.73,143.66,6.9606]
[1720008949376,0.8123711,143.75,143.68,6.9597]
[1720008949571,0.8123711,143.75,143.67,24.3609]
[1720008949786,0.8123711,143.75,143.67,17.4006]
[1720008950181,0.8123711,143.75,143.64,20.0]
[1720008950484,0.8123711,143.75,143.68,6.9597]
[1720008950685,0.34,143.74,143.64,26.9616]
[1720008950877,0.34,143.74,143.64,44.3654]
[1720008951498,0.34,143.74,143.64,17.4038]
[1720008951797,22.3043,143.73,143.64,6.9616]
[1720008951970,20.17,143.72,143.64,6.9616]
[1720008952170,0.17,143.71,143.63,24.3675]
[1720008952570,20.0,143.72,143.63,20.95]
[1720008952776,20.0,143.72,143.67,17.4003]
[1720008952972,20.0,143.72,143.67,24.3606]
[1720008953172,20.0,143.72,143.64,17.4037]
[1720008953591,20.0,143.72,143.65,6.9609]
[1720008953986,20.0,143.72,143.64,17.4037]
[1720008954493,20.0,143.72,143.7,17.3966]
[1720008954687,22.3043,143.73,143.68,6.9595]
[1720008955276,22.3043,143.73,143.67,24.3603]
[1720008956080,22.3043,143.73,143.66,6.9608]
[1720008956285,22.3043,143.73,143.67,6.9603]
[1720008956487,0.8123711,143.75,143.65,20.95]
[1720008956688,20.8123711,143.75,143.7,17.3967]
[1720008956885,0.8123711,143.75,143.71,6.9583]
[1720008957401,0.8123711,143.75,143.67,17.4001]
[1720008957898,0.8123711,143.75,143.67,38.3501]
[1720008958099,0.8123711,143.75,143.69,6.959]
[1720008958333,0.8123711,143.75,143.7,6.9589]
[1720008958598,0.8123711,143.75,143.71,1.19258776]
[1720008959279,0.8123711,143.75,143.69,24.3572]
[1720008959603,0.8123711,143.75,143.66,37.4017]
[1720008959904,0.17,143.74,143.68,6.9598]
[1720008960291,20.8123711,143.75,143.66,58.3517]
[1720008960599,0.17,143.74,143.67,6.9603]
[1720008960997,0.17,143.74,143.62,17.4058]
[1720008961295,0.34,143.74,143.62,24.3684]
[1720008961677,0.34,143.74,143.62,17.4058]
[1720008961877,0.34,143.74,143.58,20.95]
[1720008962100,22.0061,143.73,143.6,6.9636]
[1720008962317,20.34,143.72,143.6,6.9636]
[1720008962483,20.34,143.72,143.58,17.4112]
[1720008962484,57.45,143.72,143.58,17.4112]
[1720008962786,6.078,143.7,143.57,24.3779]
[1720008963109,15.2716,143.68,143.57,6.9648]
[1720008963340,20.34,143.67,143.58,6.9646]
[1720008963482,6.0456,143.66,143.53,34.8358]
[1720008963681,20.34,143.65,143.55,17.4147]
[1720008963984,20.34,143.65,143.57,6.9652]
[1720008964601,15.2091,143.64,143.52,17.4184]
[1720008964808,20.34,143.63,143.5,34.8425]
[1720008965119,20.34,143.63,143.48,20.95]
[1720008965301,20.34,143.63,143.53,17.4173]
[1720008965605,20.34,143.63,143.52,6.9673]
[1720008965789,20.34,143.63,143.53,6.9669]
[1720008965989,20.34,143.63,143.54,6.9666]
[1720008966208,20.34,143.63,143.52,17.4186]
[1720008966399,20.34,143.63,143.5,20.95]
[1720008966705,20.34,143.63,143.52,6.9676]
[1720008967307,6.2865,143.62,143.51,17.4196]
[1720008967502,20.34,143.61,143.51,17.4196]
[1720008967708,20.34,143.61,143.48,20.95]
[1720008967709,20.34,143.61,143.48,17.4233]
[1720008967927,16.338,143.59,143.48,17.4233]
[1720008968216,20.34,143.58,143.48,17.4233]
[1720008968905,20.34,143.58,143.52,6.9676]
[1720008969215,20.17,143.58,143.45,34.8536]
[1720008969414,0.17,143.57,143.47,6.9697]
[1720008969624,0.17,143.57,143.48,6.9695]
[1720008969912,0.17,143.57,143.46,20.95]
[1720008970109,0.17,143.57,143.48,6.9691]
[1720008970304,0.17,143.57,143.49,6.969]
[1720008970912,0.17,143.57,143.46,20.95]
[1720008971117,20.0,143.58,143.46,20.95]
[1720008971293,6.1122,143.57,143.46,27.9202]
[1720008971493,20.0,143.56,143.45,6.971]
[1720008971710,20.0,143.56,143.43,20.95]
[1720008971934,20.0,143.56,143.45,6.9707]
[1720008972093,20.0,143.56,143.39,22.3435]
[1720008972293,0.34,143.55,143.46,6.9705]
[1720008972922,0.34,143.55,143.43,20.95]
[1720008973294,0.34,143.55,143.46,6.9702]
[1720008973522,0.34,143.55,143.47,6.9697]
[1720008973721,0.17,143.55,143.44,20.95]
[1720008973921,0.17,143.55,143.49,6.969]
[1720008974500,0.17,143.55,143.48,6.9694]
[1720008975621,0.17,143.55,143.45,6.9709]
[1720008975808,0.34,143.55,143.45,6.9709]
[1720008976010,0.34,143.55,143.46,6.9704]
[1720008976212,0.34,143.55,143.45,6.9709]
[1720008976411,0.34,143.55,143.44,6.9715]
[1720008976619,0.34,143.55,143.43,6.9719]
[1720008976828,15.5601,143.54,143.45,6.9707]
[1720008977121,20.17,143.53,143.39,22.3435]
[1720008977332,20.0,143.53,143.39,22.3435]
[1720008977523,20.0,143.53,143.45,20.95]
[1720008977714,20.0,143.53,143.4,20.95]
[1720008977916,20.0,143.53,143.42,20.95]
[1720008978237,15.5601,143.54,143.48,6.9691]
[1720008978403,6.4271,143.53,143.37,4.75559096]
[1720008978602,21.9242,143.52,143.35,20.95]
[1720008978802,6.0836,143.49,143.34,6.976]
[1720008979025,20.0,143.48,143.34,6.976]
[1720008979403,20.0,143.48,143.35,6.9758]
[1720008979804,0.34,143.47,143.35,6.9758]
[1720008980005,0.34,143.47,143.36,6.9752]
[1720008980228,0.34,143.47,143.37,6.9748]
[1720008980714,0.34,143.47,143.31,20.95]
[1720008981110,0.34,143.47,143.37,6.9748]
[1720008981324,0.34,143.47,143.36,6.9753]
[1720008981737,15.5099,143.46,143.35,6.9757]
[1720008982031,6.6469,143.44,143.32,6.9773]
[1720008982225,20.34,143.43,143.3,6.9782]
[1720008982432,20.34,143.43,143.32,6.977]
[1720008982727,20.34,143.43,143.3,20.95]
[1720008982935,20.34,143.43,143.34,6.976]
[1720008983429,20.34,143.43,143.32,6.9769]
[1720008983815,20.34,143.43,143.27,20.95]
[1720008984018,20.34,143.43,143.34,6.9762]
[1720008985017,20.34,143.43,143.33,6.9767]
[1720008985331,20.34,143.43,143.32,6.9773]
[1720008985832,20.34,143.43,143.33,6.9764]
[1720008986030,20.17,143.43,143.28,0.34]
[1720008986234,20.17,143.43,143.29,20.95]
[1720008986425,20.17,143.43,143.3,0.34]
[1720008986633,20.17,143.43,143.35,6.9755]
[1720008986932,6.6469,143.44,143.3,0.34]
[1720008987116,6.6469,143.44,143.38,6.974]
[1720008987435,6.6469,143.44,143.31,20.95]
[1720008987727,6.6469,143.44,143.36,6.9751]
[1720008988120,6.6469,143.44,143.37,6.9748]
[1720008988315,6.6469,143.44,143.33,20.95]
[1720008988525,6.6469,143.44,143.39,6.9736]
[1720008988829,6.6469,143.44,143.39,6.9738]
[1720008989021,15.5099,143.46,143.39,6.9738]
[1720008989329,15.5099,143.46,143.35,27.1266]
[1720008989533,15.5099,143.46,143.37,20.95]
[1720008989734,15.5099,143.46,143.36,20.34]
[1720008989735,15.5099,143.46,143.4,6.9734]
[1720008990041,15.5099,143.46,143.39,6.9739]
[1720008990214,6.5749,143.49,143.41,6.9725]
[1720008990529,6.5749,143.49,143.43,6.9719]
[1720008990733,6.5749,143.49,143.44,6.9715]
[1720008991229,6.5749,143.49,143.38,0.17]
[1720008991427,6.5749,143.49,143.4,6.9734]
[1720008991626,6.5749,143.49,143.38,6.9743]
[1720008991829,6.5749,143.49,143.35,6.1766]
[1720008992034,6.5749,143.49,143.44,6.9714]
[1720008992239,6.5749,143.49,143.45,6.971]
[1720008992443,6.5749,143.49,143.42,20.95]
[1720008993121,6.5749,143.49,143.45,6.9709]
[1720008993319,6.5749,143.49,143.44,6.9714]
[1720008993627,6.5749,143.49,143.46,6.9704]
[1720008993933,15.5289,143.5,143.41,0.17]
[1720008993934,15.5289,143.5,143.47,6.9699]
[1720008994832,6.0677,143.53,143.48,6.9694]
[1720008995033,6.0677,143.53,143.41,21.12]
[1720008995238,6.0677,143.53,143.49,6.9691]
[1720008995731,6.0677,143.53,143.48,6.9694]
[1720008996032,6.0677,143.53,143.49,6.9689]
[1720008996235,6.0677,143.53,143.46,6.9702]
[1720008996424,6.0677,143.53,143.47,6.9699]
[1720008997917,6.0677,143.53,143.5,6.9682]
[1720008998119,6.0677,143.53,143.49,6.9688]
[1720008998433,6.0677,143.53,143.43,42.2258]
[1720008998734,16.0208,143.56,143.51,6.9677]
[1720008998936,16.0208,143.56,143.45,20.95]
[1720008999132,16.0208,143.56,143.47,20.95]
[1720008999317,16.0208,143.56,143.46,20.34]
[1720008999318,16.0208,143.56,143.49,20.95]
[1720008999537,16.0208,143.56,143.51,6.9677]
[1720008999839,16.0208,143.56,143.49,20.95]
[1720008999840,16.0208,143.56,143.52,7.60719662]
[1720009000723,16.0208,143.56,143.53,1.39312888]
[1720009000935,16.0208,143.56,143.5,6.9683]
[1720009001539,16.0208,143.56,143.47,20.95]
[1720009001540,16.0208,143.56,143.51,6.9681]
[1720009002353,0.17,143.55,143.48,6.9694]
[1720009002735,20.17,143.55,143.49,6.969]
[1720009003233,20.17,143.55,143.46,20.95]
[1720009003436,20.17,143.55,143.44,20.95]
[1720009003643,20.17,143.55,143.38,6.6102]
[1720009003644,6.3145,143.53,143.38,6.6102]
[1720009003830,16.3868,143.51,143.42,6.9723]
[1720009004139,16.3868,143.51,143.35,6.6102]
[1720009004140,20.34,143.5,143.35,6.6102]
[1720009004358,6.3145,143.49,143.35,6.6102]
[1720009004538,20.17,143.48,143.36,20.95]
[1720009004852,20.17,143.48,143.41,6.9728]
[1720009004853,0.17,143.47,143.41,6.9728]
[1720009005155,20.17,143.48,143.36,20.95]
[1720009005339,20.0,143.48,143.44,6.9715]
[1720009005640,20.0,143.48,143.43,6.9718]
[1720009005841,20.0,143.48,143.36,20.95]
[1720009006041,6.3145,143.49,143.36,20.95]
[1720009006222,6.3145,143.49,143.46,6.9704]
[1720009006421,6.3145,143.49,143.37,0.17]
[1720009006627,6.3145,143.49,143.38,20.95]
[1720009006834,6.3145,143.49,143.4,20.95]
[1720009007047,6.3145,143.49,143.46,6.9702]
[1720009007248,6.3145,143.49,143.47,6.9697]
[1720009007631,16.3868,143.51,143.5,6.9686]
[1720009007843,16.3868,143.51,143.49,6.969]
[1720009008367,6.043,143.52,143.43,6.2249]
[1720009008531,16.1711,143.56,143.44,41.29]
[1720009008730,16.1711,143.56,143.5,6.9685]
[1720009008943,16.1711,143.56,143.48,6.9691]
[1720009009146,16.1711,143.56,143.44,41.29]
[1720009009345,16.1711,143.56,143.48,6.9694]
[1720009009542,16.1711,143.56,143.47,6.9699]
[1720009009726,20.17,143.55,143.47,6.9699]
[1720009009948,20.34,143.55,143.47,6.9699]
[1720009010131,20.34,143.55,143.46,6.9704]
[1720009010331,20.34,143.55,143.44,40.95]
[1720009010744,20.34,143.55,143.49,6.9691]
[1720009010937,20.34,143.55,143.48,6.9692]
[1720009011127,20.34,143.55,143.47,6.9699]
[1720009011532,20.34,143.55,143.48,6.9694]
[1720009012248,20.34,143.55,143.49,6.9691]
[1720009012855,20.34,143.55,143.47,6.9696]
[1720009013057,20.34,143.55,143.46,6.9704]
[1720009013256,20.34,143.55,143.47,6.97]
[1720009013930,20.0,143.55,143.5,6.9681]
[1720009014340,20.0,143.55,143.43,0.17]
[1720009014341,20.0,143.55,143.51,6.968]
[1720009014541,20.0,143.55,143.43,0.17]
[1720009014733,16.1711,143.56,143.51,6.9676]
[1720009014933,16.1711,143.56,143.5,6.9684]
[1720009015130,16.1711,143.56,143.51,6.9681]
[1720009015635,16.1711,143.56,143.44,20.95]
[1720009015848,16.1711,143.56,143.46,20.95]
[1720009016045,16.1711,143.56,143.5,6.9683]
[1720009016251,16.1711,143.56,143.46,20.95]
[1720009016552,16.1711,143.56,143.45,0.17]
[1720009016762,0.34,143.55,143.48,6.9694]
[1720009017341,0.34,143.55,143.45,6.971]
[1720009017556,20.34,143.55,143.46,6.9705]
[1720009017839,20.34,143.55,143.47,6.9698]
[1720009018256,20.34,143.55,143.42,20.95]
[1720009018451,20.34,143.55,143.48,6.9695]
[1720009018651,20.34,143.55,143.46,6.9701]
[1720009019142,21.6572,143.54,143.38,20.95]
[1720009019332,20.34,143.53,143.43,6.972]
[1720009020259,22.332,143.51,143.37,20.95]
[1720009020556,21.5166,143.49,143.32,6.2388]
[1720009020740,20.34,143.48,143.37,6.9746]
[1720009021350,22.0661,143.47,143.36,6.9751]
[1720009021548,22.0661,143.45,143.35,6.9759]
[1720009021737,20.34,143.44,143.34,6.9763]
[1720009022135,20.34,143.44,143.36,6.9751]
[1720009022662,20.34,143.44,143.28,6.4667]
[1720009022868,20.34,143.44,143.34,6.9762]
[1720009023238,20.34,143.44,143.35,6.9758]
[1720009023437,20.34,143.44,143.36,6.9753]
[1720009023834,20.34,143.44,143.37,6.9749]
[1720009024040,20.34,143.44,143.36,6.975]
[1720009024343,20.34,143.44,143.28,27.4167]
[1720009024540,21.592,143.43,143.32,6.977]
[1720009024760,20.34,143.42,143.32,6.977]
[1720009025147,20.34,143.42,143.33,6.9768]
[1720009025459,20.34,143.42,143.32,6.9772]
[1720009025837,20.34,143.42,143.26,20.95]
[1720009026049,66.8234,143.41,143.3,6.978]
[1720009026259,20.17,143.4,143.3,6.978]
[1720009026463,20.34,143.4,143.3,6.978]
[1720009026764,6.0171,143.39,143.3,6.978]
[1720009026958,20.34,143.38,143.29,6.9786]
[1720009027546,15.102,143.37,143.29,6.9786]
[1720009027846,20.34,143.36,143.3,6.9783]
[1720009028438,20.34,143.36,143.25,0.8123711]
[1720009028639,20.17,143.36,143.31,6.9777]
[1720009028865,20.17,143.36,143.3,6.9782]
[1720009029174,20.17,143.36,143.29,6.9788]
[1720009029461,0.17,143.35,143.28,6.979]
[1720009029662,0.17,143.35,143.27,6.9797]
[1720009029871,0.17,143.35,143.26,6.9802]
[1720009030048,0.17,143.35,143.28,6.9789]
[1720009030250,0.17,143.35,143.25,0.8123711]
[1720009030439,6.6051,143.34,143.25,0.8123711]
[1720009030644,16.6067,143.32,143.25,0.8123711]
[1720009030874,20.34,143.31,143.25,0.8123711]
[1720009031648,6.1379,143.3,143.25,0.8123711]
[1720009031872,20.34,143.29,143.25,0.8123711]
[1720009033083,20.34,143.29,143.19,1.0168]
[1720009033084,13.1607,143.28,143.19,8.0004]
[1720009033412,26.6854,143.27,143.19,1.0168]
[1720009033664,71.6854,143.27,143.19,1.0168]
[1720009036069,6.0208,143.25,143.19,1.0168]
[1720009036254,0.34,143.24,143.19,1.0168]
[1720009036452,20.34,143.24,143.19,1.0168]
[1720009036653,20.34,143.24,143.1,0.8123711]
[1720009036654,18.3691,143.23,143.1,0.8123711]
[1720009036856,20.34,143.22,143.1,7.8003711]
[1720009038154,6.3243,143.19,143.1,0.8123711]
[1720009038353,20.34,143.18,143.1,0.8123711]
[1720009038555,65.34,143.18,143.1,0.8123711]
[1720009039270,20.34,143.18,143.1,7.8001711]
[1720009039468,20.34,143.18,143.1,0.8123711]
[1720009039668,20.34,143.18,143.1,7.8000711]
[1720009039887,20.0,143.18,143.1,0.8123711]
[1720009040066,6.3243,143.19,143.1,0.8123711]
[1720009040254,6.3243,143.19,143.11,6.9876]
[1720009040454,6.3243,143.19,143.12,6.987]
[1720009040687,6.3243,143.19,143.13,6.9866]
[1720009040911,6.3243,143.19,143.12,6.9869]
[1720009041054,6.3243,143.19,143.14,6.9861]
[1720009041250,20.0,143.18,143.14,6.9861]
[1720009041468,20.0,143.18,143.1,0.8123711]
[1720009041469,20.0,143.18,143.13,6.9865]
[1720009042361,20.0,143.18,143.1,0.8123711]
[1720009042560,0.17,143.17,143.1,0.8123711]
[1720009042868,0.34,143.17,143.1,0.8123711]
[1720009043064,0.34,143.17,143.1,7.8003711]
[1720009043377,0.34,143.17,143.1,0.8123711]
[1720009043877,0.34,143.17,143.11,6.9872]
[1720009044081,20.0,143.18,143.1,0.8123711]
[1720009044402,0.34,143.17,143.1,0.8123711]
[1720009044559,45.34,143.17,143.1,0.8123711]
[1720009044768,20.0,143.16,143.1,0.8123711]
[1720009044988,0.34,143.15,143.1,0.8123711]
[1720009045673,16.2139,143.14,143.1,0.8123711]
[1720009045877,0.34,143.13,143.1,0.8123711]
[1720009046882,6.65,143.12,143.1,0.8123711]
[1720009047189,20.34,143.11,143.01,17.4802]
[1720009047886,20.34,143.11,143.02,6.9919]
[1720009048092,20.34,143.11,143.01,17.4802]
[1720009049089,6.65,143.12,143.03,17.4783]
[1720009049594,6.65,143.12,143.04,6.9907]
[1720009050769,6.65,143.12,143.06,6.99]
[1720009050972,6.65,143.12,143.02,6.9918]
[1720009051171,6.65,143.12,143.01,6.9923]
[1720009051377,6.65,143.12,143.01,24.4731]
[1720009051771,6.65,143.12,143.01,17.4808]
[1720009051972,6.65,143.12,143.03,17.4784]
[1720009052193,0.34,143.11,143.03,17.4784]
[1720009052573,0.34,143.11,143.03,24.4697]
[1720009054098,0.34,143.11,143.01,6.992]
[1720009054897,0.34,143.11,143.02,6.9918]
[1720009056683,0.34,143.11,143.03,6.9914]
[1720009056983,0.34,143.11,143.02,24.4717]
[1720009058208,0.34,143.11,143.02,17.4798]
[1720009058388,0.34,143.11,143.04,24.4678]
[1720009060906,0.34,143.11,143.04,24.4679]
[1720009061207,0.34,143.11,143.05,6.9904]
[1720009061991,0.34,143.11,143.04,24.4678]
[1720009062197,0.34,143.11,143.01,17.4803]
[1720009062584,0.34,143.11,143.03,17.4786]
[1720009062789,0.17,143.11,143.06,6.99]
[1720009063206,6.65,143.12,143.06,6.99]
[1720009063426,20.0,143.11,143.06,6.99]